[Event "101st Irish Championship 2022"]
[Site "Dublin"]
[Date "2022.07.08"]
[Round "7.9"]
[White "Pang, Khai Jie Ryan"]
[Black "Goss, Alex"]
[Result "1-0"]
[ECO "D02"]
[WhiteElo "1841"]
[BlackElo "1859"]
[Annotator "NA RC"]
[PlyCount "91"]
[EventDate "2022.07.05"]
[EventType "swiss"]
[EventCountry "IRL"]
[SourceTitle "playchess.com"]
[Source "ChessBase"]
[SourceQuality "1"]
[TimeControl "40/6300+30:1800+30"]

1. d4 {[%emt 1:46:00]} e6 {[%emt 0:00:17]} 2. Nf3 {[%emt 0:00:00]} Nf6 {[%emt 0:00:16]} 3. Bf4 {[%emt 0:00:00]} d5 {[%emt 0:00:12]} 4. e3 {[%emt 0:00:00]} c5 {[%emt 0:00:07]} 5. c3 {[%emt 0:00:00]} Nc6 {[%emt 0:00:59]} 6. Nbd2 {[%emt 0:00:00]} Bd6 {[%emt 0:00:37]} 7. Bg3 {[%emt 0:00:00]} O-O {[%emt 0:00:40]} 8. Bd3 {[%emt 0:00:00]} Re8 {[%emt 0:01:36]} 9. Ne5 {[%emt 0:00:00]} Qc7 {[%emt 0:05:34]} 10. f4 {[%emt 0:00:00]} Ne7 {[%emt 0:01:39]} 11. O-O {[%emt 0:00:00]} Nf5 {[%emt 0:00:53]} 12. Bf2 {[%emt 0:00:00]} h5 {[%emt 0:17:08]} 13. h3 {[%emt 0:00:00]} h4 {[%emt 0:11:12]} 14. Qe1 {[%emt 0:00:00]} c4 {[%emt 0:07:08]} 15. Bc2 {[%emt 0:00:00]} Nd7 {[%emt 0:04:40]} 16. Bxh4 {[%emt 0:00:00]} f6 {[%emt 0:00:38]} 17. Nef3 {[%emt 0:00:00]} Nf8 {[%emt 0:06:59]} 18. g4 {[%emt 0:00:00]} Ne7 {[%emt 0:05:54]} 19. Bg3 {[%emt 0:00:00]} g5 {[%emt 0:01:34]} 20. Nh2 {[%emt 0:00:00]} Nfg6 {[%emt 0:00:44]} 21. Qf2 {[%emt 0:00:00]} f5 {[%emt 0:05:47]} 22. Kg2 {[%emt 0:00:00]} gxf4 {[%emt 0:01:15]} 23. exf4 {[%emt 0:00:00]} b5 {[%emt 0:00:49]} 24. g5 {[%emt 0:00:00]} Kg7 {[%emt 0:00:48]} 25. h4 {[%emt 0:00:00]} Rh8 {[%emt 0:00:07]} 26. Bd1 {[%emt 0:00:00]} Rxh4 {[%emt 0:08:16]} 27. Bxh4 {[%emt 0:00:00]} Nxf4+ {[%emt 0:00:09]} 28. Kh1 {[%emt 0:00:00]} Neg6 {[%emt 0:00:43]} 29. Ndf3 {[%emt 0:00:00]} Bd7 {[%emt 0:00:38]} 30. Ne5 {[%emt 0:00:00]} Rh8 {[%emt 0:04:39]} 31. Bg3 {[%emt 0:00:00]} Nd3 {[%emt 0:01:38]} 32. Qg2 {[%emt 0:00:00]} Ngxe5 {[%emt 0:01:21]} 33. dxe5 {[%emt 0:00:00]} Nxe5 {[%emt 0:00:20]} 34. Kg1 {[%emt 0:00:00]} Qb6+ {[%emt 0:01:22]} 35. Rf2 {[%emt 0:00:00]} Nd3 {[%emt 0:01:27]} 36. Bxd6 {[%emt 0:00:00]} Qxd6 {[%emt 0:01:36]} 37. Rf1 {[%emt 0:00:00]} Nf4 {[%emt 0:01:17]} 38. Qd2 {[%emt 0:00:00]} Nh3+ {[%emt 0:04:40]} 39. Kh1 {[%emt 0:00:00]} Bc6 {[%emt 0:03:14]} 40. Bf3 {[%emt 0:00:00]} e5 {[%emt 0:00:39]} 41. Rad1 {[%emt 0:13:00]} d4 {[%emt 0:32:14]} 42. cxd4 {[%emt 0:05:00]} e4 {[%emt 0:01:03]} 43. d5 {[%emt 0:00:33]} Bb7 {[%emt 0:03:16]} 44. Bxe4 {[%emt 0:04:14]} fxe4 {[%emt 0:01:04]} 45. Qd4+ {[%emt 0:00:43]} Kg8 {[%emt 0:00:11]} 46. Rf6 {[%emt 0:00:37]} 1-0

[Event "101st Irish Championship 2022"]
[Site "Dublin"]
[Date "2022.07.08"]
[Round "7.10"]
[White "Ivanov, Andrey A."]
[Black "O`Gorman, Alice"]
[Result "1-0"]
[ECO "C29"]
[WhiteElo "2180"]
[BlackElo "2043"]
[Annotator "RC"]
[PlyCount "51"]
[EventDate "2022.07.05"]
[EventType "swiss"]
[EventCountry "IRL"]
[SourceTitle "playchess.com"]
[Source "ChessBase"]
[SourceQuality "1"]
[TimeControl "40/6300+30:1800+30"]

1. e4 {[%emt 1:46:00]} e5 {[%emt 0:00:03]} 2. Nc3 {[%emt 0:00:00]} Nf6 {[%emt 0:00:06]} 3. f4 {[%emt 0:00:00]} d5 {[%emt 0:00:20]} 4. fxe5 {[%emt 0:00:00]} Nxe4 {[%emt 0:00:25]} 5. Nf3 {[%emt 0:00:00]} Bg4 {[%emt 0:00:47]} 6. Qe2 {[%emt 0:00:00]} Nxc3 {[%emt 0:00:25]} 7. dxc3 {[%emt 0:00:00]} Bc5 {[%emt 0:01:47]} 8. Bf4 {[%emt 0:00:00]} O-O {[%emt 0:02:42]} 9. O-O-O {[%emt 0:00:00]} c6 {[%emt 0:01:21]} 10. h3 {[%emt 0:00:00]} Be6 {[%emt 0:01:36]} 11. Ng5 {[%emt 0:00:00]} Qb6 {[%emt 0:24:32]} 12. Qh5 {[%emt 0:00:00]} Be3+ {[%emt 0:10:09]} 13. Kb1 {[%emt 0:00:00]} h6 {[%emt 0:14:07]} 14. Nxe6 {[%emt 0:00:00]} fxe6 {[%emt 0:00:26]} 15. Bxe3 {[%emt 0:00:00]} Qxe3 {[%emt 0:00:08]} 16. Qg6 {[%emt 0:00:00]} Qg5 {[%emt 0:04:29]} 17. Qxe6+ {[%emt 0:00:00]} Kh8 {[%emt 0:06:10]} 18. h4 {[%emt 0:00:00]} Qf5 {[%emt 0:05:38]} 19. Qd6 {[%emt 0:00:00]} Na6 {[%emt 0:03:35]} 20. Bd3 {[%emt 0:00:00]} Qh5 {[%emt 0:02:47]} 21. g4 {[%emt 0:00:00]} Qxg4 {[%emt 0:02:46]} 22. Rhg1 {[%emt 0:00:00]} Qh5 {[%emt 0:03:26]} 23. Rdf1 {[%emt 0:00:00]} Rfd8 {[%emt 0:02:45]} 24. Qe7 {[%emt 0:00:00]} Rg8 {[%emt 0:02:43]} 25. Rf7 {[%emt 0:00:00]} Rge8 {[%emt 0:03:05]} 26. Rfxg7 {[%emt 0:00:00]} 1-0

[Event "101st Irish Championship 2022"]
[Site "Dublin"]
[Date "2022.07.08"]
[Round "7.11"]
[White "Doyle, Anthony"]
[Black "Fox, Anthony"]
[Result "0-1"]
[ECO "D11"]
[WhiteElo "2116"]
[BlackElo "1945"]
[Annotator "NA RC"]
[PlyCount "50"]
[EventDate "2022.07.05"]
[EventType "swiss"]
[EventCountry "IRL"]
[SourceTitle "playchess.com"]
[Source "ChessBase"]
[SourceQuality "1"]
[TimeControl "40/6300+30:1800+30"]

1. Nf3 {[%emt 0:00:06]} d5 {[%emt 0:00:09]} 2. g3 {[%emt 0:00:06]} Nf6 {[%emt 0:00:07]} 3. Bg2 {[%emt 0:00:04]} c6 {[%emt 0:00:26]} 4. O-O {[%emt 0:00:09]} Bg4 {[%emt 0:00:23]} 5. d4 {[%emt 0:07:13]} e6 {[%emt 0:01:32]} 6. b3 {[%emt 0:05:48]} Be7 {[%emt 0:01:20]} 7. Bb2 {[%emt 0:00:07]} Nbd7 {[%emt 0:00:54]} 8. Nbd2 {[%emt 0:00:14]} O-O {[%emt 0:01:49]} 9. c4 {[%emt 0:13:25]} a5 {[%emt 0:11:08]} 10. a3 {[%emt 0:01:06]} Qc7 {[%emt 0:02:13]} 11. Rc1 {[%emt 0:01:26]} Qb8 {[%emt 0:03:03]} 12. h3 {[%emt 0:12:39]} Bh5 {[%emt 0:04:39]} 13. Qe1 {[%emt 0:17:04]} Re8 {[%emt 0:03:02]} 14. e4 {[%emt 0:06:30]} Nxe4 {[%emt 0:03:25]} 15. Nxe4 {[%emt 0:00:07]} dxe4 {[%emt 0:00:06]} 16. Qxe4 {[%emt 0:00:09]} Bg6 {[%emt 0:01:28]} 17. Qe2 {[%emt 0:01:08]} Bf6 {[%emt 0:06:32]} 18. Rfd1 {[%emt 0:08:50]} Qc7 {[%emt 0:08:24]} 19. Ne5 {[%emt 0:04:04]} Nxe5 {[%emt 0:08:24]} 20. dxe5 {[%emt 0:00:08]} Be7 {[%emt 0:00:14]} 21. Qe3 {[%emt 0:06:46]} Red8 {[%emt 0:03:40]} 22. Bf3 {[%emt 0:01:45]} h6 {[%emt 0:01:01]} 23. Kg2 {[%emt 0:00:07]} Bg5 {[%emt 0:53:01]} 24. Kg1 {[%emt 0:28:29]} Be7 {[%emt 0:00:30]} 25. h4 {[%emt 0:00:30]} c5 {[%emt 0:00:30]} 0-1

[Event "101st Irish Championship 2022"]
[Site "Dublin"]
[Date "2022.07.09"]
[Round "8.1"]
[White "Carroll, Peter"]
[Black "Kanyamarala, Tarun"]
[Result "0-1"]
[ECO "B23"]
[WhiteElo "2116"]
[BlackElo "2379"]
[Annotator "RC"]
[PlyCount "64"]
[EventDate "2022.07.05"]
[EventType "swiss"]
[EventCountry "IRL"]
[SourceTitle "playchess.com"]
[Source "ChessBase"]
[SourceQuality "1"]
[TimeControl "40/6300+30:1800+30"]

1. e4 {[%emt 0:09:44]} c5 {[%emt 0:00:07]} 2. Nc3 {[%emt 0:00:05]} e6 {[%emt 0:00:58]} 3. d4 {[%emt 0:00:23]} cxd4 {[%emt 0:00:16]} 4. Qxd4 {[%emt 0:00:06]} Nc6 {[%emt 0:00:46]} 5. Qe3 {[%emt 0:00:51]} Nf6 {[%emt 0:01:36]} 6. Bd3 {[%emt 0:03:57]} Be7 {[%emt 0:04:36]} 7. h3 {[%emt 0:07:48]} d6 {[%emt 0:09:37]} 8. Bd2 {[%emt 0:03:25]} O-O {[%emt 0:12:05]} 9. O-O-O {[%emt 0:02:40]} a6 {[%emt 0:07:15]} 10. g4 {[%emt 0:02:03]} d5 {[%emt 0:11:07]} 11. exd5 {[%emt 0:03:30]} exd5 {[%emt 0:00:27]} 12. Qg3 {[%emt 0:02:12]} d4 {[%emt 0:03:16]} 13. Ne4 {[%emt 0:02:05]} Nd5 {[%emt 0:11:38]} 14. Kb1 {[%emt 0:03:06]} Be6 {[%emt 0:03:51]} 15. a3 {[%emt 0:04:16]} Nb6 {[%emt 0:12:59]} 16. Ne2 {[%emt 0:03:09]} Nc4 {[%emt 0:06:46]} 17. f4 {[%emt 0:03:07]} Qb6 {[%emt 0:07:31]} 18. Bxc4 {[%emt 0:02:51]} Bxc4 {[%emt 0:00:13]} 19. Nc1 {[%emt 0:00:45]} f5 {[%emt 0:03:24]} 20. gxf5 {[%emt 0:04:26]} Rxf5 {[%emt 0:00:11]} 21. Rdg1 {[%emt 0:01:56]} g6 {[%emt 0:01:33]} 22. h4 {[%emt 0:01:48]} Rb5 {[%emt 0:04:32]} 23. b3 {[%emt 0:01:04]} d3 {[%emt 0:05:15]} 24. Nxd3 {[%emt 0:02:39]} Bxb3 {[%emt 0:01:24]} 25. cxb3 {[%emt 0:01:04]} Rxb3+ {[%emt 0:00:05]} 26. Kc2 {[%emt 0:00:10]} Rd8 {[%emt 0:02:17]} 27. Nc3 {[%emt 0:09:19]} Nd4+ {[%emt 0:00:13]} 28. Kd1 {[%emt 0:00:05]} Rxc3 {[%emt 0:00:38]} 29. Bxc3 {[%emt 0:02:21]} Qb3+ {[%emt 0:01:56]} 30. Ke1 {[%emt 0:00:30]} Qb1+ {[%emt 0:00:31]} 31. Kf2 {[%emt 0:00:31]} Qc2+ {[%emt 0:00:09]} 32. Ke3 {[%emt 0:00:11]} Qe2# {[%emt 0:00:14]} 0-1

[Event "101st Irish Championship 2022"]
[Site "Dublin"]
[Date "2022.07.09"]
[Round "8.2"]
[White "Li, Henry"]
[Black "O`Gorman, Tom"]
[Result "0-1"]
[ECO "B96"]
[WhiteElo "2319"]
[BlackElo "2401"]
[Annotator "RC"]
[PlyCount "80"]
[EventDate "2022.07.05"]
[EventType "swiss"]
[EventCountry "IRL"]
[SourceTitle "playchess.com"]
[Source "ChessBase"]
[SourceQuality "1"]
[TimeControl "40/6300+30:1800+30"]

1. e4 {[%emt 0:00:21]} c5 {[%emt 0:00:20]} 2. Nf3 {[%emt 0:00:53]} d6 {[%emt 0:00:07]} 3. d4 {[%emt 0:00:04]} cxd4 {[%emt 0:00:04]} 4. Nxd4 {[%emt 0:00:05]} Nf6 {[%emt 0:00:07]} 5. Nc3 {[%emt 0:00:04]} a6 {[%emt 0:00:03]} 6. Bg5 {[%emt 0:01:05]} e6 {[%emt 0:00:08]} 7. f4 {[%emt 0:00:37]} b5 {[%emt 0:00:04]} 8. e5 {[%emt 0:01:49]} dxe5 {[%emt 0:00:06]} 9. fxe5 {[%emt 0:00:09]} Qc7 {[%emt 0:00:05]} 10. exf6 {[%emt 0:00:25]} Qe5+ {[%emt 0:00:05]} 11. Be2 {[%emt 0:00:24]} Qxg5 {[%emt 0:00:09]} 12. O-O {[%emt 0:02:41]} Ra7 {[%emt 0:00:09]} 13. Qd3 {[%emt 0:01:04]} Rd7 {[%emt 0:00:07]} 14. Ne4 {[%emt 0:00:32]} Qe5 {[%emt 0:00:06]} 15. Nf3 {[%emt 0:01:13]} Qc7 {[%emt 0:00:07]} 16. Qe3 {[%emt 0:13:12]} Qa7 {[%emt 0:00:07]} 17. Qxa7 {[%emt 0:08:22]} Rxa7 {[%emt 0:00:02]} 18. Ne5 {[%emt 0:38:02]} Bb7 {[%emt 0:04:56]} 19. fxg7 {[%emt 0:04:42]} Bxg7 {[%emt 0:00:18]} 20. Nd6+ {[%emt 0:06:32]} Ke7 {[%emt 0:01:25]} 21. Rxf7+ {[%emt 0:05:59]} Kxd6 {[%emt 0:00:51]} 22. Rxg7 {[%emt 0:00:07]} Kxe5 {[%emt 0:00:22]} 23. Bf3 {[%emt 0:00:02]} Bxf3 {[%emt 0:03:09]} 24. Rxa7 {[%emt 0:03:24]} Rg8 {[%emt 0:03:35]} 25. g3 {[%emt 0:00:42]} h5 {[%emt 0:04:31]} 26. c3 {[%emt 0:07:34]} h4 {[%emt 0:04:25]} 27. Re1+ {[%emt 0:00:49]} Kd6 {[%emt 0:00:26]} 28. Kf2 {[%emt 0:02:34]} Bd5 {[%emt 0:00:24]} 29. a3 {[%emt 0:01:52]} Rf8+ {[%emt 0:07:14]} 30. Ke2 {[%emt 0:00:35]} Nc6 {[%emt 0:02:21]} 31. Rh7 {[%emt 0:09:48]} hxg3 {[%emt 0:00:51]} 32. hxg3 {[%emt 0:00:01]} Ne5 {[%emt 0:02:08]} 33. Ra7 {[%emt 0:01:22]} Bc4+ {[%emt 0:03:30]} 34. Ke3 {[%emt 0:01:11]} Rf3+ {[%emt 0:00:26]} 35. Kd2 {[%emt 0:00:17]} Rxg3 {[%emt 0:06:21]} 36. Rxa6+ {[%emt 0:00:28]} Kd5 {[%emt 0:00:10]} 37. Rxe5+ {[%emt 0:01:30]} Kxe5 {[%emt 0:00:10]} 38. a4 {[%emt 0:00:20]} Rg2+ {[%emt 0:00:40]} 39. Kc1 {[%emt 0:00:24]} Ke4 {[%emt 0:01:29]} 40. Rd6 {[%emt 0:03:33]} e5 {[%emt 0:00:43]} 0-1

[Event "101st Irish Championship 2022"]
[Site "Dublin"]
[Date "2022.07.09"]
[Round "8.3"]
[White "Flynn, Jacob"]
[Black "Baburin, Alexander"]
[Result "0-1"]
[ECO "D36"]
[WhiteElo "2199"]
[BlackElo "2400"]
[Annotator "RC"]
[PlyCount "134"]
[EventDate "2022.07.05"]
[EventType "swiss"]
[EventCountry "IRL"]
[SourceTitle "playchess.com"]
[Source "ChessBase"]
[SourceQuality "1"]
[TimeControl "40/6300+30:1800+30"]

1. d4 {[%emt 0:00:04]} d5 {[%emt 0:12:49]} 2. c4 {[%emt 0:00:08]} e6 {[%emt 0:00:03]} 3. Nc3 {[%emt 0:00:10]} Nf6 {[%emt 0:00:04]} 4. cxd5 {[%emt 0:00:10]} exd5 {[%emt 0:00:03]} 5. Bg5 {[%emt 0:00:09]} c6 {[%emt 0:00:07]} 6. e3 {[%emt 0:00:05]} Be7 {[%emt 0:00:04]} 7. Bd3 {[%emt 0:00:08]} O-O {[%emt 0:00:10]} 8. Qc2 {[%emt 0:00:10]} Nbd7 {[%emt 0:00:06]} 9. h3 {[%emt 0:00:22]} Re8 {[%emt 0:00:30]} 10. Bf4 {[%emt 0:00:06]} Nf8 {[%emt 0:00:33]} 11. Nf3 {[%emt 0:00:06]} Bd6 {[%emt 0:04:33]} 12. Bxd6 {[%emt 0:00:09]} Qxd6 {[%emt 0:00:03]} 13. O-O-O {[%emt 0:03:16]} Be6 {[%emt 0:13:19]} 14. Kb1 {[%emt 0:00:30]} Rac8 {[%emt 0:00:53]} 15. g4 {[%emt 0:02:40]} c5 {[%emt 0:02:57]} 16. Bb5 {[%emt 0:25:05]} Red8 {[%emt 0:12:33]} 17. g5 {[%emt 0:09:28]} N6d7 {[%emt 0:03:41]} 18. Bxd7 {[%emt 0:06:04]} Nxd7 {[%emt 0:01:45]} 19. dxc5 {[%emt 0:11:32]} Nxc5 {[%emt 0:03:09]} 20. Nd4 {[%emt 0:02:26]} a6 {[%emt 0:13:23]} 21. f4 {[%emt 0:07:10]} b5 {[%emt 0:01:42]} 22. f5 {[%emt 0:03:11]} Bd7 {[%emt 0:01:09]} 23. Qh2 {[%emt 0:08:32]} Be8 {[%emt 0:13:07]} 24. Qxd6 {[%emt 0:06:07]} Rxd6 {[%emt 0:02:16]} 25. Nb3 {[%emt 0:02:20]} Nxb3 {[%emt 0:16:09]} 26. axb3 {[%emt 0:00:04]} Bc6 {[%emt 0:00:47]} 27. Rd4 {[%emt 0:00:59]} f6 {[%emt 0:04:47]} 28. h4 {[%emt 0:04:42]} Re8 {[%emt 0:00:17]} 29. e4 {[%emt 0:12:53]} b4 {[%emt 0:00:08]} 30. Nxd5 {[%emt 0:00:27]} Bxd5 {[%emt 0:00:05]} 31. exd5 {[%emt 0:04:33]} fxg5 {[%emt 0:00:22]} 32. hxg5 {[%emt 0:00:05]} Re5 {[%emt 0:00:10]} 33. Rf1 {[%emt 0:03:25]} Rdxd5 {[%emt 0:00:37]} 34. Rxd5 {[%emt 0:01:32]} Rxd5 {[%emt 0:00:05]} 35. g6 {[%emt 0:00:52]} hxg6 {[%emt 0:02:36]} 36. fxg6 {[%emt 0:00:02]} Rg5 {[%emt 0:08:28]} 37. Rf4 {[%emt 0:02:18]} a5 {[%emt 0:00:00]} 38. Kc2 {[%emt 0:00:32]} Rxg6 {[%emt 0:00:00]} 39. Rf5 {[%emt 0:01:11]} Ra6 {[%emt 0:00:00]} 40. Kd3 {[%emt 0:01:09]} Kh7 {[%emt 0:00:00]} 41. Rb5 {[%emt 0:02:10]} Kh6 {[%emt 0:00:00]} 42. Ke4 {[%emt 0:01:47]} Rf6 {[%emt 0:00:00]} 43. Rxa5 {[%emt 0:02:44]} g5 {[%emt 0:00:00]} 44. Rb5 {[%emt 0:05:13]} Kh5 {[%emt 0:03:44]} 45. Ke3 {[%emt 0:01:19]} Rf4 {[%emt 0:00:14]} 46. Kd2 {[%emt 0:04:08]} Kh4 {[%emt 0:07:23]} 47. Ke3 {[%emt 0:02:29]} Rg4 {[%emt 0:00:32]} 48. Kf2 {[%emt 0:01:20]} Kh3 {[%emt 0:01:19]} 49. Rb8 {[%emt 0:05:29]} Rf4+ {[%emt 0:01:44]} 50. Kg1 {[%emt 0:01:50]} Kg3 {[%emt 0:00:33]} 51. Rd8 {[%emt 0:03:29]} Rf3 {[%emt 0:01:54]} 52. Rd2 {[%emt 0:01:10]} Rxb3 {[%emt 0:00:45]} 53. Rg2+ {[%emt 0:01:46]} Kf4 {[%emt 0:00:10]} 54. Rc2 {[%emt 0:00:10]} Re3 {[%emt 0:03:57]} 55. Kg2 {[%emt 0:01:56]} g4 {[%emt 0:00:43]} 56. Kf2 {[%emt 0:00:58]} g3+ {[%emt 0:01:30]} 57. Kg2 {[%emt 0:00:18]} b3 {[%emt 0:02:20]} 58. Rc8 {[%emt 0:00:50]} Re2+ {[%emt 0:00:25]} 59. Kg1 {[%emt 0:00:14]} Rxb2 {[%emt 0:00:49]} 60. Rc3 {[%emt 0:00:23]} g2 {[%emt 0:00:48]} 61. Kh2 {[%emt 0:00:52]} Ke4 {[%emt 0:00:22]} 62. Kg1 {[%emt 0:00:10]} Kd4 {[%emt 0:00:06]} 63. Rc8 {[%emt 0:00:19]} Rc2 {[%emt 0:00:19]} 64. Rd8+ {[%emt 0:00:53]} Kc3 {[%emt 0:00:13]} 65. Rc8+ {[%emt 0:00:05]} Kb2 {[%emt 0:00:11]} 66. Rb8 {[%emt 0:00:02]} Ka2 {[%emt 0:00:43]} 67. Ra8+ {[%emt 0:00:21]} Kb1 {[%emt 0:00:06]} 0-1

[Event "101st Irish Championship 2022"]
[Site "Dublin"]
[Date "2022.07.09"]
[Round "8.4"]
[White "O`Donnell, Conor"]
[Black "Daly, Colm"]
[Result "0-1"]
[ECO "C02"]
[WhiteElo "2269"]
[BlackElo "2190"]
[Annotator "RC"]
[PlyCount "124"]
[EventDate "2022.07.05"]
[EventType "swiss"]
[EventCountry "IRL"]
[SourceTitle "playchess.com"]
[Source "ChessBase"]
[SourceQuality "1"]
[TimeControl "40/6300+30:1800+30"]

1. d4 {[%emt 0:01:53]} e6 {[%emt 0:20:20]} 2. e4 {[%emt 0:03:03]} d5 {[%emt 0:00:07]} 3. e5 {[%emt 0:00:16]} c5 {[%emt 0:00:21]} 4. c3 {[%emt 0:00:03]} Ne7 {[%emt 0:00:29]} 5. Nf3 {[%emt 0:03:50]} Nec6 {[%emt 0:00:49]} 6. Bd3 {[%emt 0:00:55]} Nd7 {[%emt 0:00:06]} 7. O-O {[%emt 0:00:39]} Be7 {[%emt 0:00:05]} 8. Re1 {[%emt 0:03:22]} a5 {[%emt 0:00:11]} 9. Na3 {[%emt 0:01:54]} cxd4 {[%emt 0:08:00]} 10. cxd4 {[%emt 0:00:39]} Nb4 {[%emt 0:02:01]} 11. Bf1 {[%emt 0:06:44]} Nb6 {[%emt 0:01:40]} 12. h4 {[%emt 0:11:44]} h6 {[%emt 0:03:56]} 13. Nb5 {[%emt 0:05:45]} a4 {[%emt 0:00:13]} 14. h5 {[%emt 0:02:25]} Nc4 {[%emt 0:03:22]} 15. Nd2 {[%emt 0:03:10]} Nb6 {[%emt 0:09:15]} 16. a3 {[%emt 0:10:09]} Nc6 {[%emt 0:01:44]} 17. Bd3 {[%emt 0:04:15]} Bd7 {[%emt 0:07:27]} 18. Re3 {[%emt 0:03:22]} Na7 {[%emt 0:37:01]} 19. Nxa7 {[%emt 0:03:44]} Rxa7 {[%emt 0:01:28]} 20. Rg3 {[%emt 0:11:46]} Bf8 {[%emt 0:00:18]} 21. Qg4 {[%emt 0:01:49]} Nc8 {[%emt 0:07:35]} 22. Nf3 {[%emt 0:03:20]} Qb6 {[%emt 0:00:37]} 23. Qf4 {[%emt 0:02:59]} Bb5 {[%emt 0:03:10]} 24. Bc2 {[%emt 0:02:22]} Qc6 {[%emt 0:01:58]} 25. Ne1 {[%emt 0:00:30]} Nb6 {[%emt 0:01:25]} 26. Bd2 {[%emt 0:02:20]} Be2 {[%emt 0:01:14]} 27. Bd1 {[%emt 0:06:11]} Bxd1 {[%emt 0:00:19]} 28. Rxd1 {[%emt 0:00:03]} Nc4 {[%emt 0:00:24]} 29. Nd3 {[%emt 0:01:15]} b6 {[%emt 0:00:20]} 30. Rc1 {[%emt 0:02:39]} Qb5 {[%emt 0:00:26]} 31. Qg4 {[%emt 0:02:46]} Nxd2 {[%emt 0:01:00]} 32. Rc8+ {[%emt 0:00:02]} Kd7 {[%emt 0:00:06]} 33. Rc2 {[%emt 0:02:32]} Nc4 {[%emt 0:01:10]} 34. Rf3 {[%emt 0:00:32]} Kd8 {[%emt 0:00:47]} 35. Nf4 {[%emt 0:00:31]} Qd7 {[%emt 0:00:19]} 36. Rd3 {[%emt 0:02:53]} Rg8 {[%emt 0:00:10]} 37. Rd1 {[%emt 0:00:18]} Rc7 {[%emt 0:00:15]} 38. Qe2 {[%emt 0:00:29]} Be7 {[%emt 0:00:14]} 39. Qd3 {[%emt 0:00:15]} Rh8 {[%emt 0:00:42]} 40. Qg3 {[%emt 0:00:34]} Rg8 {[%emt 0:00:10]} 41. Qd3 {[%emt 0:30:05]} Kc8 {[%emt 0:32:35]} 42. Rdc1 {[%emt 0:00:26]} Kb8 {[%emt 0:00:31]} 43. Qh7 {[%emt 0:00:50]} Qe8 {[%emt 0:01:06]} 44. Ne2 {[%emt 0:00:05]} Qf8 {[%emt 0:00:44]} 45. Qd3 {[%emt 0:01:08]} Rh8 {[%emt 0:00:12]} 46. Nc3 {[%emt 0:00:16]} Qe8 {[%emt 0:00:09]} 47. Qg3 {[%emt 0:00:56]} Rg8 {[%emt 0:00:07]} 48. Qd3 {[%emt 0:00:18]} Qd7 {[%emt 0:00:00]} 49. Qh7 {[%emt 0:00:00]} Rcc8 {[%emt 0:00:00]} 50. Ne2 {[%emt 0:00:00]} f6 {[%emt 0:00:00]} 51. exf6 {[%emt 0:00:00]} Bxf6 {[%emt 0:00:00]} 52. Qd3 {[%emt 0:00:00]} Rc7 {[%emt 0:00:00]} 53. Nc3 {[%emt 0:00:00]} Rgc8 {[%emt 0:00:00]} 54. Re2 {[%emt 0:00:00]} e5 {[%emt 0:00:00]} 55. dxe5 {[%emt 0:00:00]} Nxe5 {[%emt 0:00:00]} 56. Qa6 {[%emt 0:00:00]} Nc4 {[%emt 0:00:00]} 57. Nxa4 {[%emt 0:00:00]} Bd4 {[%emt 0:00:00]} 58. Rce1 {[%emt 0:00:00]} Ra7 {[%emt 0:00:00]} 59. Qxc8+ {[%emt 0:00:00]} Kxc8 {[%emt 0:00:00]} 60. Re8+ {[%emt 0:00:00]} Kc7 {[%emt 0:00:00]} 61. R8e7 {[%emt 0:00:00]} Rxa4 {[%emt 0:00:00]} 62. b3 {[%emt 0:00:00]} Rxa3 {[%emt 0:00:00]} 0-1

[Event "101st Irish Championship 2022"]
[Site "Dublin"]
[Date "2022.07.09"]
[Round "8.5"]
[White "O`cuilleanain, Oisin"]
[Black "Mats, Diana"]
[Result "1-0"]
[ECO "E09"]
[WhiteElo "1936"]
[BlackElo "2028"]
[Annotator "NA RC"]
[PlyCount "51"]
[EventDate "2022.07.05"]
[EventType "swiss"]
[EventCountry "IRL"]
[SourceTitle "playchess.com"]
[Source "ChessBase"]
[SourceQuality "1"]
[TimeControl "40/6300+30:1800+30"]

1. c4 {[%emt 0:00:59]} Nf6 {[%emt 0:05:47]} 2. Nf3 {[%emt 0:00:47]} e6 {[%emt 0:01:43]} 3. g3 {[%emt 0:02:14]} d5 {[%emt 0:02:09]} 4. Bg2 {[%emt 0:00:50]} Be7 {[%emt 0:02:03]} 5. O-O {[%emt 0:00:35]} O-O {[%emt 0:00:09]} 6. d4 {[%emt 0:00:06]} c6 {[%emt 0:03:26]} 7. Qc2 {[%emt 0:00:35]} b6 {[%emt 0:03:27]} 8. Nbd2 {[%emt 0:00:36]} Bb7 {[%emt 0:04:58]} 9. Rd1 {[%emt 0:04:07]} Nbd7 {[%emt 0:03:58]} 10. e4 {[%emt 0:00:21]} dxc4 {[%emt 0:06:20]} 11. Nxc4 {[%emt 0:01:12]} c5 {[%emt 0:00:23]} 12. d5 {[%emt 0:17:39]} exd5 {[%emt 0:04:32]} 13. exd5 {[%emt 0:01:40]} Bxd5 {[%emt 0:01:49]} 14. Nce5 {[%emt 0:19:28]} Nxe5 {[%emt 0:15:10]} 15. Nxe5 {[%emt 0:00:27]} Qd6 {[%emt 0:00:28]} 16. Ng4 {[%emt 0:06:20]} Nxg4 {[%emt 0:07:54]} 17. Bxd5 {[%emt 0:01:01]} Qe5 {[%emt 0:01:52]} 18. Bxa8 {[%emt 0:04:49]} Rxa8 {[%emt 0:00:16]} 19. h3 {[%emt 0:00:40]} Nf6 {[%emt 0:00:17]} 20. Bf4 {[%emt 0:05:53]} Qh5 {[%emt 0:00:31]} 21. Kh2 {[%emt 0:01:38]} g5 {[%emt 0:03:47]} 22. Bd6 {[%emt 0:02:52]} Bxd6 {[%emt 0:09:29]} 23. Rxd6 {[%emt 0:00:10]} Qf3 {[%emt 0:00:03]} 24. Re1 {[%emt 0:01:56]} Nh5 {[%emt 0:10:21]} 25. Re3 {[%emt 0:01:17]} Qb7 {[%emt 0:00:55]} 26. Rh6 {[%emt 0:00:20]} 1-0